[Event "*** Titled Tuesday Blitz"]
[Site "Chess.com"]
[Date "2021.04.27"]
[Round "9"]
[White "ShahMatKanal"]
[Black "KeithArkell"]
[Result "0-1"]
[WhiteElo "2418"]
[BlackElo "2598"]
[TimeControl "180+1"]
[EndTime "11:44:29 PDT"]
[Termination "KeithArkell won by checkmate"]

1. e4 {[%clk 0:02:59.4]} 1... c6 {[%clk 0:02:59.8]} 2. d3 {[%clk 0:02:56.9]}
2... d5 {[%clk 0:03:00]} 3. Nd2 {[%clk 0:02:57.1]} 3... g6 {[%clk 0:03:00]} 4.
g3 {[%clk 0:02:57.4]} 4... Bg7 {[%clk 0:03:00.5]} 5. Bg2 {[%clk 0:02:57.9]} 5...
Nf6 {[%clk 0:02:54.5]} 6. Qe2 {[%clk 0:02:55.2]} 6... O-O {[%clk 0:02:53.8]} 7.
Ngf3 {[%clk 0:02:52]} 7... dxe4 {[%clk 0:02:53.8]} 8. Nxe4 {[%clk 0:02:44]} 8...
b6 {[%clk 0:02:54.7]} 9. Ne5 {[%clk 0:02:07.9]} 9... Nxe4 {[%clk 0:02:49.1]} 10.
Qxe4 {[%clk 0:02:07.7]} 10... Bf5 {[%clk 0:02:40.3]} 11. Qe2 {[%clk 0:02:06.3]}
11... Qc8 {[%clk 0:02:28.3]} 12. h4 {[%clk 0:02:00.1]} 12... h5 {[%clk 0:02:27]}
13. Bf4 {[%clk 0:01:37.2]} 13... Be6 {[%clk 0:02:21.4]} 14. c4 {[%clk
0:01:21.9]} 14... a6 {[%clk 0:02:12.1]} 15. O-O-O {[%clk 0:01:11.9]} 15... Ra7
{[%clk 0:02:08.2]} 16. Rhe1 {[%clk 0:01:09.8]} 16... Bg4 {[%clk 0:02:07.2]} 17.
Nxg4 {[%clk 0:01:08.8]} 17... Qxg4 {[%clk 0:02:07]} 18. f3 {[%clk 0:01:06.9]}
18... Qf5 {[%clk 0:02:05.8]} 19. Be3 {[%clk 0:00:59.5]} 19... c5 {[%clk
0:02:03.6]} 20. g4 {[%clk 0:00:59]} 20... Qf6 {[%clk 0:01:49.5]} 21. gxh5 {[%clk
0:00:57.5]} 21... Nc6 {[%clk 0:01:49.7]} 22. h6 {[%clk 0:00:52.8]} 22... Bh8
{[%clk 0:01:46.6]} 23. h5 {[%clk 0:00:53.2]} 23... g5 {[%clk 0:01:45.9]} 24. Rg1
{[%clk 0:00:51.4]} 24... Nd4 {[%clk 0:01:44.9]} 25. Qd2 {[%clk 0:00:50.1]} 25...
Ne6 {[%clk 0:01:42.5]} 26. Bh3 {[%clk 0:00:49]} 26... Kh7 {[%clk 0:01:38.6]} 27.
Bxg5 {[%clk 0:00:33]} 27... Nxg5 {[%clk 0:01:36.9]} 28. Rxg5 {[%clk 0:00:33.9]}
28... e6 {[%clk 0:01:32.6]} 29. Rdg1 {[%clk 0:00:27]} 29... Qxh6 {[%clk
0:01:30.6]} 30. d4 {[%clk 0:00:22.5]} 30... Bxd4 {[%clk 0:01:24.5]} 31. Qd3+
{[%clk 0:00:22.3]} 31... Kh8 {[%clk 0:01:24.7]} 32. Rg4 {[%clk 0:00:11.8]} 32...
f6 {[%clk 0:01:15.9]} 33. f4 {[%clk 0:00:03.9]} 33... fxg5 {[%clk 0:01:15]} 34.
fxg5 {[%clk 0:00:04.3]} 34... Qh7 {[%clk 0:01:08.9]} 35. g6 {[%clk 0:00:03.8]}
35... Qh6+ {[%clk 0:01:09.3]} 36. Kc2 {[%clk 0:00:03.3]} 36... Kg7 {[%clk
0:01:09.4]} 37. Kb3 {[%clk 0:00:02.8]} 37... Qe3 {[%clk 0:01:06.4]} 38. Qxe3
{[%clk 0:00:02.8]} 38... Bxe3 {[%clk 0:01:06.4]} 39. Re4 {[%clk 0:00:03.7]}
39... Bh6 {[%clk 0:01:03.3]} 40. Bxe6 {[%clk 0:00:04]} 40... Rf3+ {[%clk
0:01:02.4]} 41. Ka4 {[%clk 0:00:04.4]} 41... Re7 {[%clk 0:01:02.1]} 42. a3
{[%clk 0:00:03.3]} 42... Rf6 {[%clk 0:01:00.8]} 43. Bd5 {[%clk 0:00:03.6]} 43...
Rxe4 {[%clk 0:01:00.9]} 44. Bxe4 {[%clk 0:00:04.5]} 44... Bc1 {[%clk 0:00:58.4]}
45. b4 {[%clk 0:00:04.2]} 45... Rf4 {[%clk 0:00:58]} 46. Bd5 {[%clk 0:00:04.1]}
46... Rh4 {[%clk 0:00:53.3]} 47. bxc5 {[%clk 0:00:04.1]} 47... bxc5 {[%clk
0:00:54]} 48. Ka5 {[%clk 0:00:03.3]} 48... Bxa3 {[%clk 0:00:54.1]} 49. Kxa6
{[%clk 0:00:03.8]} 49... Bb2 {[%clk 0:00:54.5]} 50. Kb5 {[%clk 0:00:03.7]} 50...
Bd4 {[%clk 0:00:54.7]} 51. Bf3 {[%clk 0:00:03.8]} 51... Rh3 {[%clk 0:00:54.8]}
52. Bg4 {[%clk 0:00:03.8]} 52... Re3 {[%clk 0:00:51.5]} 53. Kc6 {[%clk 0:00:03]}
53... Re5 {[%clk 0:00:51.4]} 54. Bf3 {[%clk 0:00:02.7]} 54... Rf5 {[%clk
0:00:50.4]} 55. Bg4 {[%clk 0:00:03.1]} 55... Rg5 {[%clk 0:00:49.6]} 56. Be2
{[%clk 0:00:03.2]} 56... Be3 {[%clk 0:00:47.6]} 57. Kb5 {[%clk 0:00:03.3]} 57...
Re5 {[%clk 0:00:47.3]} 58. Bf3 {[%clk 0:00:03.4]} 58... Kf6 {[%clk 0:00:47.3]}
59. Bg4 {[%clk 0:00:03.5]} 59... Rg5 {[%clk 0:00:42.8]} 60. Be2 {[%clk
0:00:03.4]} 60... Rg2 {[%clk 0:00:41.2]} 61. Bf3 {[%clk 0:00:03.6]} 61... Rg3
{[%clk 0:00:38.8]} 62. Be2 {[%clk 0:00:03.6]} 62... Ke6 {[%clk 0:00:38.8]} 63.
Bd1 {[%clk 0:00:03.3]} 63... Kd6 {[%clk 0:00:38.9]} 64. Bc2 {[%clk 0:00:03.5]}
64... Bh6 {[%clk 0:00:37.8]} 65. Bd1 {[%clk 0:00:03.5]} 65... Rg1 {[%clk
0:00:37.5]} 66. Bf3 {[%clk 0:00:03.4]} 66... Rb1+ {[%clk 0:00:37.3]} 67. Ka6
{[%clk 0:00:03.5]} 67... Kc7 {[%clk 0:00:35.4]} 68. Bd5 {[%clk 0:00:03.1]} 68...
Bd2 {[%clk 0:00:34.5]} 69. g7 {[%clk 0:00:02.5]} 69... Ra1+ {[%clk 0:00:30.7]}
70. Kb5 {[%clk 0:00:02.7]} 70... Ra5# {[%clk 0:00:30.8]} 0-1

[Event "*** Titled Tuesday Blitz"]
[Site "Chess.com"]
[Date "2021.04.27"]
[Round "9"]
[White "VinzentSpitzl"]
[Black "Gerodot71"]
[Result "0-1"]
[WhiteElo "2401"]
[BlackElo "2566"]
[TimeControl "180+1"]
[EndTime "11:44:29 PDT"]
[Termination "Gerodot71 won by resignation"]

1. e4 {[%clk 0:03:00.9]} 1... e5 {[%clk 0:02:57.5]} 2. Nf3 {[%clk 0:03:00.1]}
2... Nc6 {[%clk 0:02:58.1]} 3. Bb5 {[%clk 0:02:58.2]} 3... a6 {[%clk 0:02:57.8]}
4. Ba4 {[%clk 0:02:57.9]} 4... Nf6 {[%clk 0:02:57.2]} 5. O-O {[%clk 0:02:54.2]}
5... Be7 {[%clk 0:02:56.6]} 6. Re1 {[%clk 0:02:53.9]} 6... b5 {[%clk 0:02:52.8]}
7. Bb3 {[%clk 0:02:53.7]} 7... d6 {[%clk 0:02:53.2]} 8. c3 {[%clk 0:02:53.1]}
8... O-O {[%clk 0:02:52.5]} 9. h3 {[%clk 0:02:53.1]} 9... Nb8 {[%clk 0:02:52.1]}
10. d4 {[%clk 0:02:52.6]} 10... Nbd7 {[%clk 0:02:50.6]} 11. Nbd2 {[%clk
0:02:51.6]} 11... Bb7 {[%clk 0:02:50.5]} 12. Bc2 {[%clk 0:02:50.8]} 12... Re8
{[%clk 0:02:50.2]} 13. Nf1 {[%clk 0:02:50.2]} 13... Bf8 {[%clk 0:02:49.9]} 14.
Ng3 {[%clk 0:02:50.2]} 14... g6 {[%clk 0:02:48]} 15. a4 {[%clk 0:02:49.9]} 15...
Nb6 {[%clk 0:02:46.3]} 16. a5 {[%clk 0:02:47.9]} 16... Nbd7 {[%clk 0:02:45.2]}
17. Bg5 {[%clk 0:02:34.9]} 17... h6 {[%clk 0:02:42.7]} 18. Bd2 {[%clk
0:02:33.3]} 18... Bg7 {[%clk 0:02:42.8]} 19. b3 {[%clk 0:02:23.3]} 19... Kh7
{[%clk 0:02:33.8]} 20. d5 {[%clk 0:01:58.6]} 20... c6 {[%clk 0:02:20.6]} 21. c4
{[%clk 0:01:58.4]} 21... bxc4 {[%clk 0:02:19.2]} 22. bxc4 {[%clk 0:01:58.2]}
22... Nc5 {[%clk 0:02:19.6]} 23. Be3 {[%clk 0:01:54.1]} 23... Nfd7 {[%clk
0:02:19.2]} 24. Nd2 {[%clk 0:01:48]} 24... Qc7 {[%clk 0:02:13.1]} 25. Nb3 {[%clk
0:01:47.3]} 25... Nxb3 {[%clk 0:02:13]} 26. Bxb3 {[%clk 0:01:48.2]} 26... Rab8
{[%clk 0:02:08.4]} 27. Qd2 {[%clk 0:01:44.1]} 27... Nc5 {[%clk 0:01:56.3]} 28.
Bc2 {[%clk 0:01:31.8]} 28... Bc8 {[%clk 0:01:47.3]} 29. h4 {[%clk 0:01:31.4]}
29... h5 {[%clk 0:01:44.7]} 30. Reb1 {[%clk 0:01:23.3]} 30... Bd7 {[%clk
0:01:43.5]} 31. Bxc5 {[%clk 0:01:19.4]} 31... dxc5 {[%clk 0:01:43.6]} 32. d6
{[%clk 0:01:18.5]} 32... Qa7 {[%clk 0:01:41]} 33. Qe3 {[%clk 0:00:56.8]} 33...
Bh6 {[%clk 0:01:27.5]} 34. Qf3 {[%clk 0:00:53.1]} 34... Be6 {[%clk 0:01:27.9]}
35. Ba4 {[%clk 0:00:47.1]} 35... Qd7 {[%clk 0:01:23]} 36. Qd3 {[%clk 0:00:43.4]}
36... Red8 {[%clk 0:01:15.6]} 37. Rb6 {[%clk 0:00:35.5]} 37... Rxb6 {[%clk
0:01:00.7]} 38. axb6 {[%clk 0:00:36.4]} 38... Qb7 {[%clk 0:01:01.1]} 39. Rb1
{[%clk 0:00:26]} 39... Bf8 {[%clk 0:01:00.8]} 40. Qf3 {[%clk 0:00:09.7]} 40...
Rxd6 {[%clk 0:00:57]} 41. Qc3 {[%clk 0:00:06]} 41... Rd4 {[%clk 0:00:56]} 42.
Bc2 {[%clk 0:00:05.3]} 42... Be7 {[%clk 0:00:55.7]} 43. Bd3 {[%clk 0:00:04.8]}
43... Bxh4 {[%clk 0:00:55.6]} 44. Ne2 {[%clk 0:00:03.5]} 44... Rd8 {[%clk
0:00:51.8]} 45. g3 {[%clk 0:00:03.8]} 45... Bf6 {[%clk 0:00:51.6]} 46. f4 {[%clk
0:00:03.4]} 46... Kg7 {[%clk 0:00:51]} 47. fxe5 {[%clk 0:00:03.6]} 47... Be7
{[%clk 0:00:51.3]} 48. Nf4 {[%clk 0:00:03.8]} 48... Bc8 {[%clk 0:00:42.3]} 49.
e6+ {[%clk 0:00:03]} 49... Bf6 {[%clk 0:00:42.6]} 50. e5 {[%clk 0:00:03.5]}
50... Bg5 {[%clk 0:00:39.4]} 51. exf7 {[%clk 0:00:03.5]} 51... Rd4 {[%clk
0:00:30.7]} 52. e6 {[%clk 0:00:03]} 52... Bxf4 {[%clk 0:00:29.9]} 53. gxf4
{[%clk 0:00:03.5]} 53... Bxe6 {[%clk 0:00:30.5]} 54. Rd1 {[%clk 0:00:02.8]}
54... Bxf7 {[%clk 0:00:29.2]} 55. Be2 {[%clk 0:00:03.1]} 55... Qxb6 {[%clk
0:00:28.9]} 56. Bf3 {[%clk 0:00:02]} 56... Qd8 {[%clk 0:00:26.2]} 57. Re1 {[%clk
0:00:02.1]} 57... Qf6 {[%clk 0:00:25.9]} 58. Qe3 {[%clk 0:00:01.9]} 58... Rxf4
{[%clk 0:00:25.9]} 59. Bxc6 {[%clk 0:00:01.5]} 59... Rg4+ {[%clk 0:00:25.1]} 60.
Bg2 {[%clk 0:00:01]} 60... Rxc4 {[%clk 0:00:23.9]} 61. Qe5 {[%clk 0:00:01.6]}
61... Qxe5 {[%clk 0:00:22.9]} 62. Rxe5 {[%clk 0:00:02.5]} 62... Rc1+ {[%clk
0:00:23.3]} 0-1

[Event "*** Titled Tuesday Blitz"]
[Site "Chess.com"]
[Date "2021.04.27"]
[Round "9"]
[White "SF-96"]
[Black "RobertoJBM"]
[Result "1/2-1/2"]
[WhiteElo "2616"]
[BlackElo "2728"]
[TimeControl "180+1"]
[EndTime "11:44:33 PDT"]
[Termination "Game drawn - insufficient material"]

1. Nf3 {[%clk 0:03:00.9]} 1... d5 {[%clk 0:03:00]} 2. g3 {[%clk 0:03:01.2]} 2...
c6 {[%clk 0:02:59.6]} 3. Bg2 {[%clk 0:03:01.6]} 3... Bg4 {[%clk 0:03:00.2]} 4.
O-O {[%clk 0:03:02.1]} 4... Nd7 {[%clk 0:03:00.5]} 5. c4 {[%clk 0:03:02]} 5...
e6 {[%clk 0:03:00.2]} 6. d4 {[%clk 0:03:01.7]} 6... Ngf6 {[%clk 0:02:59.5]} 7.
h3 {[%clk 0:02:56.9]} 7... Bh5 {[%clk 0:02:58.1]} 8. cxd5 {[%clk 0:02:53.4]}
8... exd5 {[%clk 0:02:56.4]} 9. Qb3 {[%clk 0:02:54]} 9... Qb6 {[%clk 0:02:55.4]}
10. Nc3 {[%clk 0:02:44.9]} 10... Qxb3 {[%clk 0:02:54.5]} 11. axb3 {[%clk
0:02:45.4]} 11... Bd6 {[%clk 0:02:51.1]} 12. Nh4 {[%clk 0:02:33.6]} 12... Bg6
{[%clk 0:02:48.5]} 13. Nxg6 {[%clk 0:02:25.9]} 13... hxg6 {[%clk 0:02:49.4]} 14.
h4 {[%clk 0:02:26.5]} 14... a6 {[%clk 0:02:47.5]} 15. Bg5 {[%clk 0:02:12.7]}
15... O-O {[%clk 0:02:44.6]} 16. Bh3 {[%clk 0:02:01.7]} 16... Rfe8 {[%clk
0:02:41.9]} 17. Rfe1 {[%clk 0:02:02.1]} 17... Nf8 {[%clk 0:02:37.6]} 18. Bxf6
{[%clk 0:01:54]} 18... gxf6 {[%clk 0:02:38.5]} 19. e4 {[%clk 0:01:54.7]} 19...
dxe4 {[%clk 0:02:37]} 20. Nxe4 {[%clk 0:01:55.2]} 20... Be7 {[%clk 0:02:35.4]}
21. Nc5 {[%clk 0:01:35.6]} 21... Bxc5 {[%clk 0:02:33.8]} 22. dxc5 {[%clk
0:01:36.5]} 22... f5 {[%clk 0:02:32]} 23. Rad1 {[%clk 0:01:13.4]} 23... Rxe1+
{[%clk 0:02:13.1]} 24. Rxe1 {[%clk 0:01:13.5]} 24... Ne6 {[%clk 0:02:14]} 25. b4
{[%clk 0:01:09.6]} 25... Rd8 {[%clk 0:02:08.7]} 26. h5 {[%clk 0:01:05.3]} 26...
Ng5 {[%clk 0:01:41.4]} 27. Bg2 {[%clk 0:01:03.5]} 27... Rd7 {[%clk 0:01:41.7]}
28. f4 {[%clk 0:00:44.5]} 28... Nh7 {[%clk 0:01:38.6]} 29. hxg6 {[%clk
0:00:38.4]} 29... fxg6 {[%clk 0:01:38.6]} 30. Bf3 {[%clk 0:00:34.9]} 30... Nf6
{[%clk 0:01:33.2]} 31. Kf2 {[%clk 0:00:16.6]} 31... Kf7 {[%clk 0:01:30.6]} 32.
Ke3 {[%clk 0:00:08.6]} 32... Re7+ {[%clk 0:00:50.4]} 33. Kd2 {[%clk 0:00:08.8]}
33... Rxe1 {[%clk 0:00:51.3]} 34. Kxe1 {[%clk 0:00:09.7]} 34... Ke6 {[%clk
0:00:52.2]} 35. Kd2 {[%clk 0:00:07.2]} 35... Nd5 {[%clk 0:00:52.8]} 36. Kd3
{[%clk 0:00:04.2]} 36... Nxb4+ {[%clk 0:00:50.6]} 37. Kd4 {[%clk 0:00:04.6]}
37... a5 {[%clk 0:00:46.2]} 38. Bd1 {[%clk 0:00:03.3]} 38... Na6 {[%clk
0:00:43.9]} 39. Bb3+ {[%clk 0:00:03.5]} 39... Ke7 {[%clk 0:00:44.4]} 40. Bc4
{[%clk 0:00:04]} 40... Nc7 {[%clk 0:00:44.7]} 41. Ke5 {[%clk 0:00:04.2]} 41...
Nb5 {[%clk 0:00:37.3]} 42. Bd3 {[%clk 0:00:03.2]} 42... a4 {[%clk 0:00:33.9]}
43. g4 {[%clk 0:00:03.1]} 43... fxg4 {[%clk 0:00:33.7]} 44. Bxg6 {[%clk
0:00:04]} 44... g3 {[%clk 0:00:33.8]} 45. Be4 {[%clk 0:00:04.6]} 45... a3 {[%clk
0:00:31.1]} 46. bxa3 {[%clk 0:00:05.5]} 46... Nxa3 {[%clk 0:00:31]} 47. f5
{[%clk 0:00:06]} 47... Nc4+ {[%clk 0:00:31]} 48. Kf4 {[%clk 0:00:06.5]} 48...
Kf6 {[%clk 0:00:30]} 49. Kxg3 {[%clk 0:00:06.2]} 49... Nd2 {[%clk 0:00:28.8]}
50. Kf4 {[%clk 0:00:05.2]} 50... Nb3 {[%clk 0:00:29]} 51. Bf3 {[%clk 0:00:04.6]}
51... Nxc5 {[%clk 0:00:29.5]} 52. Bg4 {[%clk 0:00:04]} 52... Nd7 {[%clk
0:00:29.6]} 53. Ke3 {[%clk 0:00:04.3]} 53... Ke5 {[%clk 0:00:29.1]} 54. Bh3
{[%clk 0:00:02.7]} 54... Nf6 {[%clk 0:00:30]} 55. Kd3 {[%clk 0:00:03.2]} 55...
b5 {[%clk 0:00:27]} 56. Kc3 {[%clk 0:00:03.2]} 56... c5 {[%clk 0:00:27.3]} 57.
Bf1 {[%clk 0:00:03.8]} 57... Nd5+ {[%clk 0:00:25.6]} 58. Kb3 {[%clk 0:00:04.4]}
58... Nc7 {[%clk 0:00:16.7]} 59. Bxb5 {[%clk 0:00:04.1]} 59... Nxb5 {[%clk
0:00:12.8]} 60. Kc4 {[%clk 0:00:04.7]} 60... Nd6+ {[%clk 0:00:02.3]} 61. Kxc5
{[%clk 0:00:05]} 61... Nxf5 {[%clk 0:00:03.2]} 1/2-1/2

[Event "*** Titled Tuesday Blitz"]
[Site "Chess.com"]
[Date "2021.04.27"]
[Round "9"]
[White "anon6121824"]
[Black "Andreikka"]
[Result "0-1"]
[WhiteElo "2816"]
[BlackElo "2889"]
[TimeControl "180+1"]
[EndTime "11:44:34 PDT"]
[Termination "Andreikka won by resignation"]

1. e4 {[%clk 0:03:00.9]} 1... e5 {[%clk 0:02:54.5]} 2. Nc3 {[%clk 0:03:00.2]}
2... Nf6 {[%clk 0:02:54.2]} 3. g3 {[%clk 0:02:45.4]} 3... d5 {[%clk 0:02:54.3]}
4. exd5 {[%clk 0:02:46.3]} 4... Nxd5 {[%clk 0:02:54.9]} 5. Bg2 {[%clk
0:02:46.7]} 5... Nxc3 {[%clk 0:02:55.3]} 6. bxc3 {[%clk 0:02:45]} 6... Bc5
{[%clk 0:02:55.8]} 7. Ne2 {[%clk 0:02:45.1]} 7... Nc6 {[%clk 0:02:55.4]} 8. O-O
{[%clk 0:02:42.9]} 8... O-O {[%clk 0:02:55.4]} 9. Bb2 {[%clk 0:02:41.7]} 9...
Bb6 {[%clk 0:02:50.6]} 10. h3 {[%clk 0:02:40.4]} 10... Re8 {[%clk 0:02:50.6]}
11. d4 {[%clk 0:02:33.2]} 11... Bf5 {[%clk 0:02:42.4]} 12. Re1 {[%clk
0:01:54.4]} 12... Qd7 {[%clk 0:02:22.2]} 13. g4 {[%clk 0:01:48.3]} 13... Bg6
{[%clk 0:02:22.6]} 14. dxe5 {[%clk 0:01:38.9]} 14... Qxd1 {[%clk 0:02:17.2]} 15.
Raxd1 {[%clk 0:01:39.8]} 15... Nxe5 {[%clk 0:02:17.8]} 16. Nd4 {[%clk
0:01:39.8]} 16... c6 {[%clk 0:02:13.6]} 17. Bc1 {[%clk 0:01:26.5]} 17... f6
{[%clk 0:02:06.9]} 18. Nf5 {[%clk 0:01:17.6]} 18... Bxf5 {[%clk 0:01:31.3]} 19.
gxf5 {[%clk 0:01:18.5]} 19... Rad8 {[%clk 0:01:31.9]} 20. Rxd8 {[%clk 0:01:09]}
20... Rxd8 {[%clk 0:01:28.4]} 21. Bf4 {[%clk 0:01:09.2]} 21... Nd7 {[%clk
0:01:21.2]} 22. Bf1 {[%clk 0:01:04.3]} 22... Ne5 {[%clk 0:00:58]} 23. Bxe5
{[%clk 0:00:56.6]} 23... fxe5 {[%clk 0:00:58.9]} 24. Bc4+ {[%clk 0:00:55]} 24...
Kf8 {[%clk 0:00:57.9]} 25. Rxe5 {[%clk 0:00:55.1]} 25... Rd1+ {[%clk 0:00:43.7]}
26. Kg2 {[%clk 0:00:54.1]} 26... Rd6 {[%clk 0:00:16.5]} 27. Re6 {[%clk
0:00:51.2]} 27... Rd2 {[%clk 0:00:16.5]} 28. Re2 {[%clk 0:00:49.3]} 28... Rd7
{[%clk 0:00:17]} 29. Be6 {[%clk 0:00:42.8]} 29... Rd8 {[%clk 0:00:17.1]} 30. Bb3
{[%clk 0:00:40.6]} 30... Bc5 {[%clk 0:00:16.5]} 31. h4 {[%clk 0:00:36]} 31...
Be7 {[%clk 0:00:11.8]} 32. h5 {[%clk 0:00:36.3]} 32... Bf6 {[%clk 0:00:09.2]}
33. Re3 {[%clk 0:00:36.6]} 33... Rd2 {[%clk 0:00:09.6]} 34. Rd3 {[%clk
0:00:35.5]} 34... Rxd3 {[%clk 0:00:09.3]} 35. cxd3 {[%clk 0:00:36.4]} 35... Bxc3
{[%clk 0:00:09.3]} 36. Kf3 {[%clk 0:00:36.5]} 36... Ke7 {[%clk 0:00:09.8]} 37.
Ke4 {[%clk 0:00:36.5]} 37... Bf6 {[%clk 0:00:07.4]} 38. Bg8 {[%clk 0:00:34.5]}
38... h6 {[%clk 0:00:06.8]} 39. Bb3 {[%clk 0:00:31]} 39... Kd6 {[%clk
0:00:07.7]} 40. d4 {[%clk 0:00:30.3]} 40... b5 {[%clk 0:00:06.9]} 41. a4 {[%clk
0:00:28]} 41... a6 {[%clk 0:00:06.4]} 42. f3 {[%clk 0:00:27.6]} 42... Kc7 {[%clk
0:00:05.9]} 43. Bc2 {[%clk 0:00:24.8]} 43... Kb6 {[%clk 0:00:06.3]} 44. axb5
{[%clk 0:00:14.5]} 44... cxb5 {[%clk 0:00:05.5]} 45. Kd5 {[%clk 0:00:14]} 45...
a5 {[%clk 0:00:05.8]} 46. Bd1 {[%clk 0:00:10.4]} 46... a4 {[%clk 0:00:06.2]} 47.
Bc2 {[%clk 0:00:09.1]} 47... Ka5 {[%clk 0:00:05.8]} 48. Kc5 {[%clk 0:00:09.2]}
48... b4 {[%clk 0:00:05]} 49. d5 {[%clk 0:00:06.5]} 49... b3 {[%clk 0:00:05.3]}
50. Bd1 {[%clk 0:00:06.7]} 50... Be7+ {[%clk 0:00:05.8]} 51. Kc4 {[%clk
0:00:05.9]} 51... Bd6 {[%clk 0:00:04.6]} 52. Kc3 {[%clk 0:00:03.2]} 52... Kb5
{[%clk 0:00:04.9]} 53. Be2+ {[%clk 0:00:02.7]} 53... Kc5 {[%clk 0:00:05.4]} 54.
Bc4 {[%clk 0:00:02.3]} 54... Be5+ {[%clk 0:00:05.9]} 55. Kd3 {[%clk 0:00:02.4]}
55... Kb4 {[%clk 0:00:06.5]} 56. f4 {[%clk 0:00:01.5]} 56... Bd6 {[%clk
0:00:05.9]} 57. f6 {[%clk 0:00:01.2]} 57... gxf6 {[%clk 0:00:06.3]} 58. f5
{[%clk 0:00:02.1]} 58... a3 {[%clk 0:00:06.1]} 0-1

[Event "*** Titled Tuesday Blitz"]
[Site "Chess.com"]
[Date "2021.04.27"]
[Round "9"]
[White "Leonid_Starozhilov"]
[Black "AlexTriapishko"]
[Result "0-1"]
[WhiteElo "2686"]
[BlackElo "2872"]
[TimeControl "180+1"]
[EndTime "11:44:35 PDT"]
[Termination "AlexTriapishko won by resignation"]

1. e4 {[%clk 0:03:00.9]} 1... e5 {[%clk 0:02:56.5]} 2. Nf3 {[%clk 0:03:00.6]}
2... Nc6 {[%clk 0:02:57.1]} 3. Bc4 {[%clk 0:02:57.8]} 3... d6 {[%clk 0:02:42.4]}
4. d3 {[%clk 0:02:49.8]} 4... Na5 {[%clk 0:02:41.6]} 5. Nc3 {[%clk 0:02:42.1]}
5... Nf6 {[%clk 0:02:31.5]} 6. O-O {[%clk 0:02:35.1]} 6... Be7 {[%clk
0:02:29.9]} 7. h3 {[%clk 0:02:19.7]} 7... O-O {[%clk 0:02:28.8]} 8. Re1 {[%clk
0:02:08.5]} 8... Nxc4 {[%clk 0:02:23]} 9. dxc4 {[%clk 0:02:09.4]} 9... Be6
{[%clk 0:02:23.6]} 10. b3 {[%clk 0:02:08.8]} 10... Nd7 {[%clk 0:02:23.4]} 11.
Nd5 {[%clk 0:02:02.2]} 11... f5 {[%clk 0:02:14]} 12. Nxe7+ {[%clk 0:01:44.7]}
12... Qxe7 {[%clk 0:02:13.9]} 13. Ng5 {[%clk 0:01:45.3]} 13... f4 {[%clk
0:02:10.7]} 14. Nxe6 {[%clk 0:01:37.9]} 14... Qxe6 {[%clk 0:02:11.6]} 15. f3
{[%clk 0:01:28]} 15... g5 {[%clk 0:02:04.9]} 16. Ba3 {[%clk 0:01:12.5]} 16... h5
{[%clk 0:02:01.2]} 17. Qd3 {[%clk 0:01:07.4]} 17... b6 {[%clk 0:01:56.9]} 18.
Kf2 {[%clk 0:00:58.2]} 18... Rf7 {[%clk 0:01:53.5]} 19. Rh1 {[%clk 0:00:57.8]}
19... a5 {[%clk 0:01:51.8]} 20. Bb2 {[%clk 0:00:41.7]} 20... Rg7 {[%clk
0:01:51.1]} 21. Qd5 {[%clk 0:00:36.8]} 21... Re8 {[%clk 0:01:47.6]} 22. a4
{[%clk 0:00:29.3]} 22... Nf6 {[%clk 0:01:44.8]} 23. Qxe6+ {[%clk 0:00:28.3]}
23... Rxe6 {[%clk 0:01:45.7]} 24. Rh2 {[%clk 0:00:24.6]} 24... g4 {[%clk
0:01:42.8]} 25. hxg4 {[%clk 0:00:24.7]} 25... hxg4 {[%clk 0:01:43.7]} 26. Rh4
{[%clk 0:00:24.7]} 26... Kf7 {[%clk 0:01:43.9]} 27. Rah1 {[%clk 0:00:24.3]}
27... Re8 {[%clk 0:01:44.5]} 28. Rh8 {[%clk 0:00:17.7]} 28... Reg8 {[%clk
0:01:38.3]} 29. Rxg8 {[%clk 0:00:17.4]} 29... Rxg8 {[%clk 0:01:39.2]} 30. Bc3
{[%clk 0:00:16.5]} 30... Kg6 {[%clk 0:01:33.7]} 31. Bd2 {[%clk 0:00:14.7]} 31...
Nh7 {[%clk 0:01:29.5]} 32. g3 {[%clk 0:00:12.7]} 32... fxg3+ {[%clk 0:01:24.7]}
33. Kxg3 {[%clk 0:00:13.6]} 33... gxf3 {[%clk 0:01:25]} 34. Kxf3 {[%clk
0:00:14.5]} 34... Rf8+ {[%clk 0:01:23.9]} 35. Ke2 {[%clk 0:00:12.8]} 35... Nf6
{[%clk 0:01:23.8]} 36. Rg1+ {[%clk 0:00:11]} 36... Kf7 {[%clk 0:01:17.8]} 37.
Kd3 {[%clk 0:00:08.6]} 37... Rh8 {[%clk 0:01:13.9]} 38. Rg3 {[%clk 0:00:04.1]}
38... Rh2 {[%clk 0:01:12.1]} 39. Bg5 {[%clk 0:00:03.9]} 39... Nd7 {[%clk
0:01:06.5]} 40. Rf3+ {[%clk 0:00:03.8]} 40... Ke8 {[%clk 0:01:06]} 41. Be3
{[%clk 0:00:04.7]} 41... Nb8 {[%clk 0:01:02.5]} 42. Rg3 {[%clk 0:00:04.1]} 42...
Kf7 {[%clk 0:00:59.5]} 43. Rf3+ {[%clk 0:00:04.3]} 43... Ke6 {[%clk 0:00:56.7]}
44. Rf2 {[%clk 0:00:04]} 44... Rh3 {[%clk 0:00:54.9]} 45. Rg2 {[%clk 0:00:04.4]}
45... Na6 {[%clk 0:00:51.3]} 46. c3 {[%clk 0:00:04.9]} 46... Nc5+ {[%clk
0:00:50.9]} 47. Ke2 {[%clk 0:00:04.4]} 47... Nxe4 {[%clk 0:00:51]} 48. Rg6+
{[%clk 0:00:04.7]} 48... Kf7 {[%clk 0:00:48.9]} 49. Rg4 {[%clk 0:00:04.6]} 49...
Nxc3+ {[%clk 0:00:48.3]} 50. Kd2 {[%clk 0:00:04.5]} 50... Nb1+ {[%clk
0:00:46.4]} 51. Kd3 {[%clk 0:00:04.7]} 51... Nc3 {[%clk 0:00:40.5]} 52. Kxc3
{[%clk 0:00:03.2]} 52... Rxe3+ {[%clk 0:00:40.1]} 53. Kc2 {[%clk 0:00:03.7]}
53... Rh3 {[%clk 0:00:38.1]} 54. Rg5 {[%clk 0:00:02.9]} 54... Rh8 {[%clk
0:00:34.2]} 55. Rg4 {[%clk 0:00:02.8]} 55... Kf6 {[%clk 0:00:34.4]} 56. Kd3
{[%clk 0:00:02.9]} 56... Rh3+ {[%clk 0:00:33.4]} 57. Kc2 {[%clk 0:00:03.4]}
57... Rh7 {[%clk 0:00:33.9]} 58. Kd3 {[%clk 0:00:03.4]} 58... Kf5 {[%clk
0:00:34.5]} 59. Rg8 {[%clk 0:00:03.4]} 59... Rh3+ {[%clk 0:00:35]} 60. Kc2
{[%clk 0:00:03.7]} 60... Ke4 {[%clk 0:00:32]} 61. Rg7 {[%clk 0:00:03.5]} 61...
c6 {[%clk 0:00:31]} 62. Rg6 {[%clk 0:00:03.5]} 62... Rh2+ {[%clk 0:00:28.4]} 63.
Kb1 {[%clk 0:00:03.9]} 63... d5 {[%clk 0:00:29.3]} 64. cxd5 {[%clk 0:00:03]}
64... cxd5 {[%clk 0:00:29.4]} 65. Rxb6 {[%clk 0:00:03.2]} 65... d4 {[%clk
0:00:30]} 66. b4 {[%clk 0:00:03.1]} 66... d3 {[%clk 0:00:26.3]} 67. bxa5 {[%clk
0:00:02.7]} 67... Rh1+ {[%clk 0:00:25.9]} 68. Kb2 {[%clk 0:00:03.1]} 68... d2
{[%clk 0:00:26.8]} 69. Rb4+ {[%clk 0:00:03.4]} 69... Kf5 {[%clk 0:00:25.7]} 0-1